bitfinex-derivatives/quotes_BTCF0:USTF0_20230105
["timestamp","ask_amount","ask_price","bid_price","bid_amount"]
[1672930630111,0.00106,16819.0,16818.0,0.3108]
[1672930630315,0.00116,16819.0,16818.0,0.3108]
[1672930630742,0.00116,16819.0,16818.0,0.6115]
[1672930631790,0.00116,16819.0,16818.0,0.3108]
[1672930634210,0.00016,16819.0,16818.0,0.3008]
[1672930634527,0.00116,16819.0,16818.0,0.3108]
[1672930634838,0.00116,16819.0,16818.0,0.3098]
[1672930637047,0.00116,16819.0,16818.0,0.4098]
[1672930654378,0.00116,16819.0,16818.0,0.4988188]
[1672930654601,0.1,16823.0,16819.0,0.1]
[1672930654796,0.1,16823.0,16821.0,0.3007]
[1672930655636,0.1,16823.0,16821.0,0.3108]
[1672930656169,0.1001,16823.0,16821.0,0.3008]
[1672930656795,0.1001,16823.0,16821.0,0.3408]
[1672930657751,0.0001,16823.0,16822.0,0.1]
[1672930658688,0.1,16824.0,16822.0,0.4007]
[1672930659108,0.1,16824.0,16822.0,0.3008]
[1672930659635,0.1001,16824.0,16822.0,0.3008]
[1672930659949,0.1001,16824.0,16822.0,0.3048]
[1672930661635,0.1001,16824.0,16823.0,0.1]
[1672930662157,0.1001,16824.0,16823.0,3.77]
[1672930662574,0.1,16824.0,16823.0,3.77]
[1672930662999,0.1,16824.0,16823.0,3.7791]
[1672930663419,0.1001,16824.0,16823.0,3.7791]
[1672930664477,0.1001,16824.0,16823.0,0.0091]
[1672930664790,0.1001,16824.0,16823.0,0.4098]
[1672930665001,0.1001,16824.0,16823.0,4.1798]
[1672930665208,0.0001,16824.0,16823.0,4.0798]
[1672930665731,0.0001,16824.0,16823.0,4.16837863]
[1672930665936,0.1,16828.0,16824.0,0.1]
[1672930666144,0.1,16828.0,16827.0,0.3007]
[1672930666357,0.3,16832.0,16827.0,0.3007]
[1672930666567,0.3,16832.0,16829.0,0.3007]
[1672930666889,0.1,16831.0,16829.0,0.3007]
[1672930667109,0.3,16830.0,16829.0,0.3007]
[1672930667613,0.1,16831.0,16829.0,0.3007]
[1672930667823,0.1,16831.0,16829.0,0.3117]
[1672930668243,0.1,16831.0,16829.0,0.3007]
[1672930668457,0.1,16831.0,16829.0,0.3118]
[1672930668676,0.3,16830.0,16829.0,0.3118]
[1672930668894,0.4,16830.0,16829.0,0.3118]
[1672930669523,0.4,16830.0,16829.0,0.011]
[1672930669944,0.7007,16830.0,16827.0,0.3007]
[1672930670165,0.7007,16830.0,16829.0,0.0111]
[1672930670365,0.7007,16830.0,16829.0,0.01116]
[1672930670571,0.4007,16830.0,16829.0,0.01116]
[1672930670784,0.1,16830.0,16829.0,0.01116]
[1672930670998,0.1001,16830.0,16829.0,0.01116]
[1672930671522,0.10016,16830.0,16829.0,0.31186]
[1672930673627,0.10016,16830.0,16829.0,0.30086]
[1672930673846,0.00016,16830.0,16829.0,0.31086]
[1672930682664,0.1,16833.0,16830.0,0.1]
[1672930682982,0.1,16833.0,16832.0,0.6014]
[1672930683810,0.1,16833.0,16832.0,0.6015]
[1672930684030,0.9014,16846.0,16833.0,0.5945]
[1672930684247,0.3007,16843.0,16838.0,0.3007]
[1672930684447,0.3,16842.0,16839.0,0.3007]
[1672930684657,0.1,16841.0,16839.0,0.3007]
[1672930684977,0.4007,16841.0,16839.0,0.3007]
[1672930685191,0.1,16841.0,16839.0,0.3007]
[1672930685398,0.1,16841.0,16839.0,0.3008]
[1672930685600,0.1,16841.0,16839.0,0.3098]
[1672930685811,0.1001,16841.0,16839.0,0.3098]
[1672930686443,0.0001,16841.0,16839.0,0.3098]
[1672930687080,0.1,16844.0,16840.0,0.3007]
[1672930687288,0.1,16844.0,16842.0,0.3007]
[1672930687919,0.1,16844.0,16842.0,0.6014]
[1672930688125,0.1,16844.0,16842.0,0.6125]
[1672930688546,0.1001,16844.0,16842.0,0.3118]
[1672930690759,0.1001,16844.0,16842.0,0.3098]
[1672930691704,0.1001,16844.0,16842.0,0.3008]
[1672930691916,0.1001,16844.0,16842.0,0.3048]
[1672930692125,0.1001,16844.0,16842.0,0.3008]
[1672930693604,0.1001,16844.0,16842.0,0.3408]
[1672930694438,0.4001,16844.0,16842.0,0.3008]
[1672930694652,0.4001,16844.0,16842.0,0.3048]
[1672930695071,0.3007,16843.0,16842.0,0.0041]
[1672930695696,0.4007,16843.0,16842.0,0.004]
[1672930696336,0.4007,16843.0,16842.0,0.0041]
[1672930696752,0.9953,16843.0,16838.0,0.3007]
[1672930696965,0.8945,16842.0,16838.0,0.3007]
[1672930697281,0.1,16840.0,16838.0,0.3007]
[1672930697488,0.1,16840.0,16837.0,0.3321]
[1672930697911,0.1,16840.0,16838.0,0.0381]
[1672930698124,0.1,16840.0,16838.0,0.0001]
[1672930698438,0.3,16839.0,16838.0,0.0001]
[1672930698748,0.4,16839.0,16835.0,0.3007]
[1672930699070,1.2952,16839.0,16835.0,0.3007]
[1672930699582,0.1,16838.0,16835.0,0.3007]
[1672930699790,0.1,16838.0,16835.0,0.3008]
[1672930700006,0.1,16838.0,16835.0,0.0001]
[1672930700225,0.1,16838.0,16835.0,0.1411]
[1672930700537,0.1,16836.0,16835.0,0.1411]
[1672930701064,0.1,16836.0,16835.0,0.005]
[1672930702212,0.1001,16836.0,16835.0,0.005]
[1672930702418,0.1001,16836.0,16833.0,0.3008]
[1672930702641,0.1041,16836.0,16835.0,0.009]
[1672930702847,0.1,16836.0,16833.0,0.3007]
[1672930703070,0.104,16836.0,16835.0,0.011]
[1672930703382,0.104,16836.0,16835.0,0.0111]
[1672930703796,0.1041,16836.0,16835.0,0.0111]
[1672930704328,0.1041,16836.0,16835.0,0.3118]
[1672930705904,0.1041,16836.0,16835.0,0.3008]
[1672930706119,0.1041,16836.0,16835.0,0.3058]
[1672930706532,0.1041,16836.0,16835.0,0.3008]
[1672930707476,0.1001,16836.0,16835.0,0.3388]
[1672930708745,0.1001,16836.0,16835.0,0.4108]
[1672930709168,0.1001,16836.0,16835.0,0.3388]
[1672930711681,0.1041,16836.0,16835.0,0.3008]
[1672930712215,0.1001,16836.0,16835.0,0.4108]
[1672930712422,0.1001,16836.0,16835.0,0.1101]
[1672930712740,0.1041,16836.0,16835.0,0.0001]
[1672930713158,0.4008,16836.0,16835.0,0.0001]
[1672930713470,0.4048,16836.0,16835.0,0.0001]
[1672930713676,0.4008,16836.0,16835.0,0.0001]
[1672930713893,0.4048,16836.0,16835.0,0.0101]
[1672930714834,0.4278,16836.0,16835.0,0.0111]
[1672930715257,0.4008,16836.0,16835.0,0.0001]
[1672930715464,0.4008,16836.0,16835.0,0.0111]
[1672930715465,1.0223,16836.0,16835.0,0.0111]
[1672930716306,1.0223,16836.0,16835.0,0.011]
[1672930716513,0.9953,16836.0,16831.0,0.6074]
[1672930716730,1.0223,16836.0,16835.0,0.011]
[1672930720829,0.9953,16836.0,16831.0,0.6074]
[1672930721031,1.323,16836.0,16835.0,0.011]
[1672930721667,1.323,16836.0,16831.0,0.6074]
[1672930721668,1.296,16836.0,16831.0,0.6074]
[1672930721879,1.323,16836.0,16835.0,0.011]
[1672930722084,1.296,16836.0,16831.0,0.6074]
[1672930722295,1.323,16836.0,16835.0,0.011]
[1672930722715,1.323,16836.0,16831.0,0.6074]
[1672930722716,1.323,16836.0,16831.0,0.6184]
[1672930723980,0.3007,16834.0,16831.0,0.3177]
[1672930724184,0.1,16833.0,16831.0,0.011]
[1672930724401,0.1,16833.0,16830.0,0.6255]
[1672930724402,0.1,16833.0,16828.0,0.3007]
[1672930724811,0.1,16833.0,16831.0,0.011]
[1672930725241,0.1,16833.0,16828.0,0.3008]
[1672930725454,0.1011,16833.0,16828.0,0.3528]
[1672930725666,0.1001,16833.0,16828.0,0.3007]
[1672930725870,0.1271,16833.0,16831.0,0.011]
[1672930726292,0.127,16833.0,16831.0,0.011]
[1672930726709,0.3007,16832.0,16831.0,0.011]
[1672930726921,0.127,16833.0,16831.0,0.011]
[1672930727241,0.101,16833.0,16832.0,0.3007]
[1672930727659,0.1,16833.0,16832.0,0.3007]
[1672930728074,0.1,16835.0,16832.0,0.3007]
[1672930728287,0.0271,16833.0,16832.0,0.6117]
[1672930728498,0.0001,16833.0,16832.0,0.9014]
[1672930728715,0.0161,16833.0,16832.0,0.9014]
[1672930728917,0.016,16833.0,16832.0,0.9014]
[1672930729127,0.101,16835.0,16832.0,0.9534]
[1672930729347,0.101,16835.0,16834.0,0.3007]
[1672930730393,0.1,16835.0,16834.0,0.3007]
[1672930730708,0.116,16835.0,16834.0,0.3007]
[1672930731440,0.116,16835.0,16834.0,0.3008]
[1672930731758,0.1161,16835.0,16834.0,0.3008]
[1672930739320,0.0161,16835.0,16834.0,0.38957299]
[1672930741942,0.0161,16835.0,16834.0,0.3008]
[1672930742156,0.0161,16835.0,16834.0,0.38957299]
[1672930742999,0.0161,16835.0,16834.0,0.3008]
[1672930744354,0.0161,16835.0,16834.0,0.68957299]
[1672930744568,0.0161,16835.0,16834.0,0.6008]
[1672930744778,0.0161,16835.0,16834.0,0.38957299]
[1672930745627,0.0161,16835.0,16834.0,0.3008]
[1672930747200,0.0161,16835.0,16834.0,0.48957299]
[1672930747415,0.0161,16835.0,16834.0,0.4008]
[1672930748781,0.0161,16835.0,16834.0,0.3008]
[1672930749189,0.0161,16835.0,16834.0,4.0708]
[1672930749395,0.0161,16835.0,16834.0,0.3008]
[1672930749826,0.0161,16835.0,16834.0,4.0708]
[1672930752241,0.08659948,16837.0,16835.0,0.1]
[1672930752457,0.08659948,16837.0,16836.0,0.3007]
[1672930753399,0.08659948,16837.0,16836.0,0.3008]
[1672930753610,0.09869948,16837.0,16836.0,0.3108]
[1672930754551,0.08669948,16837.0,16836.0,0.3608]
[1672930755071,0.0001,16837.0,16836.0,0.3608]
[1672930755915,0.0001,16837.0,16836.0,0.4608]
[1672930756758,0.0011,16837.0,16836.0,4.3038]
[1672930756971,0.0011,16837.0,16836.0,4.39257299]
[1672930757498,0.0011,16837.0,16836.0,4.3038]
[1672930757709,0.0011,16837.0,16836.0,4.3098]
[1672930758125,0.0011,16837.0,16836.0,0.62857299]
[1672930758554,0.0011,16837.0,16836.0,4.39857299]
[1672930759485,0.0011,16837.0,16836.0,0.5398]
[1672930759700,0.0011,16837.0,16836.0,0.62857299]
[1672930759917,0.0001,16837.0,16836.0,0.48957299]
[1672930760120,0.0011,16837.0,16836.0,0.62857299]
[1672930762129,0.0011,16837.0,16836.0,4.39857299]
[1672930762329,0.0011,16837.0,16836.0,0.62857299]
[1672930762965,0.0011,16837.0,16836.0,0.5398]
[1672930765809,0.0011,16837.0,16836.0,4.3098]
[1672930768227,0.0011,16837.0,16836.0,4.39857299]
[1672930770012,0.0011,16837.0,16836.0,4.53214537]
[1672930771061,0.0011,16837.0,16836.0,4.39857299]
[1672930773166,0.0011,16837.0,16836.0,4.53214537]
[1672930773692,0.0011,16837.0,16836.0,4.39857299]
[1672930774846,0.0011,16837.0,16836.0,4.53214537]
[1672930775376,0.0011,16837.0,16836.0,4.39857299]
[1672930775685,0.0011,16837.0,16836.0,4.53214537]
[1672930775901,0.0011,16837.0,16836.0,4.39857299]
[1672930781043,0.0011,16837.0,16836.0,4.29857299]
[1672930781254,0.0011,16837.0,16836.0,0.4398]
[1672930781478,0.0011,16837.0,16836.0,0.5398]
[1672930781679,0.0011,16837.0,16836.0,4.39857299]
[1672930782627,0.0021,16837.0,16836.0,4.39857299]
[1672930783042,0.0021,16837.0,16836.0,0.5398]
[1672930784517,0.0021,16837.0,16836.0,0.4398]
[1672930792088,0.3021,16837.0,16836.0,0.4398]
[1672930793146,0.0021,16837.0,16836.0,0.4398]
[1672930799983,0.0021,16837.0,16836.0,0.43967788]
[1672930800195,0.0021,16837.0,16836.0,0.62845087]
[1672930800405,0.0021,16837.0,16836.0,0.43967788]
[1672930807870,0.0021,16837.0,16836.0,4.20967788]
[1672930808081,0.0021,16837.0,16836.0,4.29845087]
[1672930808291,0.0021,16837.0,16836.0,4.43202325]
[1672930808496,0.0021,16837.0,16836.0,4.89845087]
[1672930808706,0.0001,16837.0,16836.0,4.94325026]
[1672930808922,0.0001,16837.0,16836.0,1.17325026]
[1672930809340,0.0001,16837.0,16836.0,4.34325026]
[1672930809551,0.0001,16837.0,16836.0,4.34315026]
[1672930810075,0.0001,16837.0,16836.0,4.34325026]
[1672930810284,0.0001,16837.0,16836.0,0.67325026]
[1672930810699,0.0002,16837.0,16836.0,4.44325026]
[1672930811126,0.0002,16837.0,16836.0,4.53192893]
[1672930812076,0.0002,16837.0,16836.0,4.39835655]
[1672930812812,0.0002,16837.0,16836.0,0.62835655]
[1672930813021,0.0002,16837.0,16836.0,0.43967788]
[1672930813653,0.0002,16837.0,16836.0,0.62835655]
[1672930814485,0.0002,16837.0,16836.0,0.76192893]
[1672930815117,0.0002,16837.0,16836.0,0.62835655]
[1672930815332,0.0002,16837.0,16836.0,0.76192893]
[1672930815541,0.0002,16837.0,16836.0,4.53192893]
[1672930816487,0.0002,16837.0,16836.0,4.44325026]
[1672930817542,0.0001,16837.0,16836.0,5.20185193]
[1672930817745,0.0001,16837.0,16836.0,5.02375542]
[1672930818161,0.0001,16837.0,16836.0,5.20119879]
[1672930818369,0.0001,16837.0,16836.0,4.97857815]
[1672930818798,0.0001,16837.0,16836.0,4.62021829]
[1672930819022,0.0001,16837.0,16836.0,4.44277492]
[1672930822482,0.0001,16837.0,16836.0,4.97858047]
[1672930822701,0.0001,16837.0,16836.0,5.57858047]
[1672930823219,0.0001,16837.0,16836.0,4.44275501]
[1672930824579,0.0001,16837.0,16836.0,4.48712125]
[1672930824783,0.0001,16837.0,16836.0,4.9785776]
[1672930825007,0.0001,16837.0,16836.0,4.62017162]
[1672930825219,0.0001,16837.0,16836.0,1.80857558]
[1672930825745,0.0001,16837.0,16836.0,1.85375285]
[1672930826784,0.0001,16837.0,16836.0,1.80847818]
[1672930826994,0.0001,16837.0,16836.0,1.80847684]
[1672930829313,0.0001,16837.0,16836.0,1.20847684]
[1672930829524,0.0001,16837.0,16836.0,0.85000711]
[1672930829734,0.0001,16837.0,16836.0,0.67266248]
[1672930830160,0.1,16841.0,16837.0,0.1001385]
[1672930830372,0.1,16841.0,16839.0,0.3007]
[1672930831527,0.1,16841.0,16839.0,0.3008]
[1672930831935,0.1001,16841.0,16839.0,0.3008]
[1672930832572,0.1001,16841.0,16839.0,0.3568]
[1672930832998,0.1001,16841.0,16840.0,0.3007]
[1672930834477,0.1,16841.0,16840.0,0.3007]
[1672930834785,0.103,16841.0,16840.0,0.3007]
[1672930834992,0.103,16841.0,16840.0,0.3008]
[1672930835731,0.1031,16841.0,16840.0,0.3008]
[1672930838775,0.1031,16841.0,16840.0,0.0001]
[1672930839937,0.4031,16841.0,16840.0,0.0001]
[1672930841412,0.1031,16841.0,16840.0,0.0001]
[1672930847925,0.1031,16841.0,16837.0,0.0001385]
[1672930848140,0.1,16838.0,16837.0,0.0001385]
[1672930848983,0.1,16838.0,16837.0,0.0002385]
[1672930849193,0.1001,16838.0,16837.0,0.0002385]
[1672930849405,0.1001,16838.0,16837.0,0.1392385]
[1672930850132,0.4008,16838.0,16837.0,0.1392385]
[1672930850768,0.4058,16838.0,16837.0,0.0002385]
[1672930851288,0.4058,16838.0,16837.0,0.0092385]
[1672930851711,0.4008,16838.0,16837.0,0.0002385]
[1672930851917,0.4058,16838.0,16837.0,0.0102385]
[1672930852345,1.0003,16838.0,16837.0,0.0102385]
[1672930859288,1.0003,16838.0,16837.0,8.5e-06]
[1672930874751,0.4058,16838.0,16837.0,8.5e-06]
[1672930874953,0.1051,16838.0,16837.0,8.5e-06]
[1672930876121,0.1051,16838.0,16836.0,0.3007]
[1672930876122,0.1001,16838.0,16836.0,0.3007]
[1672930876332,0.1891,16838.0,16837.0,0.008]
[1672930877480,0.1891,16838.0,16837.0,0.308]
[1672930877686,0.1001,16838.0,16837.0,0.304]
[1672930877899,0.1451,16838.0,16837.0,0.304]
[1672930879274,0.1001,16838.0,16837.0,0.3]
[1672930879476,0.1891,16838.0,16837.0,0.308]
[1672930879687,0.0001,16838.0,16837.0,0.4]
[1672930879897,0.0021,16838.0,16837.0,0.428]
[1672930880323,0.0001,16838.0,16837.0,0.3]
[1672930880529,0.0081,16838.0,16837.0,0.494]
[1672930880740,0.0081,16838.0,16837.0,0.3]
[1672930880950,0.0081,16838.0,16837.0,0.394]
[1672930881261,0.0081,16838.0,16837.0,0.494]
[1672930881476,0.0081,16838.0,16837.0,0.394]
[1672930882317,0.0081,16838.0,16837.0,0.494]
[1672930882527,0.0081,16838.0,16837.0,0.394]
[1672930882846,0.0081,16838.0,16837.0,0.494]
[1672930883359,0.0081,16838.0,16837.0,0.394]
[1672930883569,0.0081,16838.0,16837.0,0.494]
[1672930883778,0.0081,16838.0,16837.0,0.394]
[1672930884210,0.0081,16838.0,16837.0,0.494]
[1672930885777,0.0081,16838.0,16837.0,0.394]
[1672930885991,0.0081,16838.0,16837.0,0.094]
[1672930888104,0.0081,16838.0,16837.0,0.194]
[1672930888845,0.0081,16838.0,16837.0,0.094]
[1672930889255,0.0081,16838.0,16837.0,3.864]
[1672930890315,0.0081,16838.0,16837.0,0.094]
[1672930890522,0.0081,16838.0,16837.0,0.194]
[1672930890739,0.0081,16838.0,16837.0,3.964]
[1672930891466,0.3007,16846.0,16838.0,0.1]
[1672930891676,0.1,16843.0,16841.0,0.3007]
[1672930892727,0.1,16843.0,16841.0,0.3097]
[1672930893353,0.1,16843.0,16841.0,0.3088]
[1672930893771,0.1001,16843.0,16841.0,0.3088]
[1672930898396,0.1001,16843.0,16841.0,0.6095]
[1672930898714,0.0001,16843.0,16842.0,0.1]
[1672930899133,0.0001,16843.0,16841.0,0.6095]
[1672930899338,0.0001,16843.0,16842.0,0.1]
[1672930899759,0.1,16845.0,16842.0,0.1]
[1672930899979,0.1,16845.0,16844.0,0.3007]
[1672930900812,0.1,16845.0,16844.0,0.3097]
[1672930901025,0.1,16847.0,16844.0,0.3097]
[1672930901238,0.1,16847.0,16846.0,0.3007]
[1672930901763,0.1,16847.0,16846.0,0.3008]
[1672930902177,0.0001,16847.0,16846.0,0.3008]
[1672930903129,0.0001,16847.0,16846.0,0.3108]
[1672930903331,0.0001,16847.0,16846.0,0.3008]
[1672930903544,0.0001,16847.0,16846.0,0.3088]
[1672930907739,0.0001,16847.0,16846.0,4.1788]
[1672930910589,0.0001,16847.0,16846.0,4.26745991]
[1672930912581,0.0001,16847.0,16846.0,0.49745991]
[1672930913216,0.0001,16847.0,16846.0,4.26745991]
[1672930913427,0.1,16851.0,16847.0,0.1]
[1672930913638,0.1,16851.0,16850.0,0.3007]
[1672930914478,0.1,16851.0,16850.0,0.3008]
[1672930914688,0.1001,16851.0,16850.0,0.3008]
[1672930915314,0.1001,16851.0,16850.0,4.0708]
[1672930915738,0.1001,16851.0,16850.0,4.0788]
[1672930916789,0.1001,16851.0,16850.0,0.3088]
[1672930918886,0.1001,16851.0,16850.0,0.4088]
[1672930919097,0.0001,16851.0,16850.0,0.4088]
[1672930921716,0.6207,16859.0,16850.0,0.4088]
[1672930922042,0.1,16858.0,16857.0,0.3007]
[1672930922243,0.8666,16858.0,16855.0,0.3007]
[1672930922459,0.7666,16856.0,16853.0,0.3007]
[1672930922670,0.0166,16856.0,16853.0,0.3007]
[1672930923090,0.1,16855.0,16853.0,0.3007]
[1672930923406,0.1,16855.0,16853.0,0.3107]
[1672930923727,0.1,16855.0,16854.0,0.3007]
[1672930924453,0.1166,16855.0,16854.0,0.3007]
[1672930924667,0.1166,16855.0,16853.0,0.01]
[1672930924875,1.4611,16855.0,16854.0,0.0001]
[1672930925090,1.4611,16855.0,16854.0,0.0081]
[1672930925404,1.4612,16855.0,16854.0,0.0001]
[1672930925614,1.4612,16855.0,16854.0,0.0091]
[1672930926031,1.4612,16855.0,16854.0,0.01]
[1672930926242,0.1,16854.0,16849.0,0.3276]
[1672930926449,0.0166,16852.0,16848.0,0.3007]
[1672930926659,0.1,16851.0,16848.0,0.3007]
[1672930927088,0.0166,16850.0,16847.0,0.3007]
[1672930927297,0.0166,16850.0,16849.0,0.3007]
[1672930927502,0.1,16851.0,16849.0,0.3007]
[1672930927503,0.1001,16851.0,16849.0,0.3007]
[1672930927714,0.1001,16851.0,16849.0,0.6014]
[1672930928243,0.1,16852.0,16850.0,0.2834]
[1672930928443,0.1,16852.0,16851.0,0.3007]
[1672930929287,0.1,16852.0,16851.0,0.4007]
[1672930929498,0.1,16853.0,16851.0,0.4007]
[1672930929706,0.1,16854.0,16852.0,0.5841]
[1672930929926,0.6945,16856.0,16853.0,0.3007]
[1672930930135,0.5945,16856.0,16855.0,0.3007]
[1672930930341,0.3173,16859.0,16855.0,0.3007]
[1672930930546,0.1166,16860.0,16857.0,0.3007]
[1672930930757,0.1,16859.0,16857.0,0.3007]
[1672930930972,0.6945,16859.0,16857.0,0.3007]
[1672930931711,0.6945,16859.0,16857.0,0.3117]
[1672930931916,0.0166,16858.0,16857.0,0.011]
[1672930932123,0.0166,16858.0,16857.0,0.0111]
[1672930932336,0.6945,16859.0,16857.0,0.0111]
[1672930932657,0.6946,16859.0,16857.0,0.0111]
[1672930933282,0.0166,16858.0,16857.0,0.0101]
[1672930933813,0.0166,16858.0,16857.0,0.0111]
[1672930934024,0.0166,16858.0,16857.0,0.011]
[1672930934334,0.0166,16858.0,16857.0,0.01]
[1672930934756,0.6945,16859.0,16857.0,0.0101]
[1672930935174,0.0001,16858.0,16857.0,0.0101]
[1672930935703,0.0001,16858.0,16857.0,0.3107]
[1672930936020,0.6945,16859.0,16857.0,0.3107]
[1672930936651,0.6945,16859.0,16857.0,0.3108]
[1672930936867,0.6945,16859.0,16857.0,0.3118]
[1672930937596,0.0001,16858.0,16857.0,0.3118]
[1672930938016,0.0001,16858.0,16857.0,0.5951]
[1672930938440,0.6945,16859.0,16857.0,0.5951]
[1672930938646,0.6945,16859.0,16857.0,0.5952]
[1672930939175,0.0001,16858.0,16857.0,0.5842]
[1672930939396,0.0001,16858.0,16857.0,0.5941]
[1672930939813,0.6945,16859.0,16857.0,0.5951]
[1672930940129,0.6945,16859.0,16857.0,0.5842]
[1672930940341,0.6945,16859.0,16857.0,0.5942]
[1672930940552,0.0001,16858.0,16857.0,0.5942]
[1672930940758,0.0001,16858.0,16857.0,0.5941]
[1672930940972,0.0001,16858.0,16857.0,0.5841]
[1672930941175,0.1,16860.0,16857.0,0.5951]
[1672930941500,0.1,16860.0,16859.0,0.3007]
[1672930942544,0.00010504,16864.0,16860.0,0.1]
[1672930942859,0.10010504,16864.0,16862.0,0.2834]
[1672930943064,0.10010504,16864.0,16861.0,0.3007]
[1672930943274,0.10010504,16864.0,16861.0,0.5841]
[1672930943492,0.10010504,16864.0,16863.0,0.5841]
[1672930943700,0.10010504,16864.0,16861.0,0.3007]
[1672930943916,0.10010504,16864.0,16862.0,0.2945]
[1672930944228,0.10020504,16864.0,16862.0,0.2945]
[1672930945066,0.10020504,16864.0,16863.0,0.011]
[1672930945490,0.10020504,16864.0,16862.0,0.2835]
[1672930945691,0.10020504,16864.0,16862.0,0.2944]
[1672930946111,0.10010504,16864.0,16862.0,0.2944]
[1672930946321,0.10010504,16864.0,16863.0,0.011]
[1672930946537,0.1,16867.0,16863.0,0.3117]
[1672930946746,0.1,16864.0,16863.0,0.3007]
[1672930946957,0.1,16864.0,16863.0,0.5841]
[1672930947383,0.1001,16864.0,16863.0,0.5841]
[1672930948011,0.1,16864.0,16863.0,0.5841]
[1672930948220,0.1,16864.0,16863.0,0.5951]
[1672930948429,0.1,16864.0,16863.0,0.5952]
[1672930948639,0.1001,16864.0,16863.0,0.5952]
[1672930949058,0.1001,16864.0,16863.0,0.3118]
[1672930950423,0.1001,16864.0,16863.0,0.5952]
[1672930950840,0.0001,16864.0,16863.0,0.5952]
[1672930951473,0.5945,16869.0,16864.0,0.1]
[1672930951686,0.1,16868.0,16867.0,0.5841]
[1672930952322,0.1,16870.0,16867.0,0.5842]
[1672930952522,0.1,16870.0,16869.0,0.3007]
[1672930952737,0.2,16870.0,16869.0,0.3007]
[1672930952953,0.8111,16870.0,16867.0,0.5952]
[1672930953161,0.0001,16868.0,16867.0,0.0111]
[1672930953574,0.0001,16868.0,16867.0,0.011]
[1672930953994,0.1,16869.0,16867.0,0.011]
[1672930954207,0.1,16869.0,16868.0,0.5841]
[1672930955467,0.1,16869.0,16868.0,0.3107]
[1672930956315,0.1,16869.0,16868.0,0.5941]
[1672930956728,0.1,16869.0,16868.0,0.01]
[1672930957900,0.1,16869.0,16868.0,0.5941]
[1672930958112,0.1,16869.0,16868.0,0.2934]
[1672930958730,0.1,16869.0,16868.0,0.0101]
[1672930958942,0.1001,16869.0,16868.0,0.0101]
[1672930959255,0.1001,16869.0,16868.0,0.2935]
[1672930960104,0.9953,16869.0,16868.0,0.0101]
[1672930963258,0.6946,16869.0,16868.0,0.0101]
[1672930964511,0.6946,16869.0,16868.0,0.2935]
[1672930965365,0.6946,16869.0,16868.0,0.0101]
[1672930966511,0.9953,16869.0,16868.0,0.0101]
[1672930967356,0.6946,16869.0,16868.0,0.0101]
[1672930969043,0.0001,16869.0,16868.0,0.0101]
[1672930969468,0.1001,16869.0,16868.0,0.0101]
[1672930969678,0.1001,16869.0,16868.0,0.2935]
[1672930970416,0.0001,16869.0,16868.0,0.3935]
[1672930972414,0.0001,16869.0,16868.0,0.2935]
[1672930972729,0.0001,16869.0,16868.0,0.3935]
[1672930978503,0.0001,16869.0,16868.0,0.2935]
[1672930979451,0.0001,16869.0,16868.0,0.3935]
[1672930981237,0.0001,16869.0,16868.0,0.2935]
[1672930981452,0.0001,16869.0,16868.0,0.3935]
[1672930982401,0.0001,16869.0,16868.0,0.2935]
[1672930983137,0.1001,16869.0,16868.0,0.2935]
[1672930986502,0.1001,16869.0,16868.0,0.0101]
[1672930987239,0.9953,16869.0,16868.0,0.0101]
[1672930990071,9.999e-05,16868.0,16865.0,0.2834]
[1672930990283,0.5945,16866.0,16865.0,0.2834]
[1672930990600,0.6945,16866.0,16863.0,0.599]
[1672930990803,0.1,16865.0,16862.0,0.6188]
[1672930991125,0.1,16865.0,16864.0,0.2834]
[1672930992281,0.1,16865.0,16864.0,0.5841]
[1672930992491,0.116,16865.0,16864.0,0.5841]
[1672930992708,0.116,16865.0,16864.0,0.5842]
[1672930992913,0.1,16865.0,16864.0,0.5842]
[1672930993123,0.1,16865.0,16864.0,0.5962]
[1672930993124,0.7285,16865.0,16864.0,0.5962]
[1672930994390,0.7285,16865.0,16864.0,0.2955]
[1672930994594,0.7286,16865.0,16864.0,0.2955]
[1672930997539,0.7286,16865.0,16864.0,0.5962]
[1672930997746,0.0341,16865.0,16864.0,0.5962]
[1672930998278,9.999e-05,16868.0,16864.0,0.8962]
[1672930998475,9.999e-05,16868.0,16867.0,0.5841]
[1672930998898,0.1,16869.0,16867.0,0.5841]
[1672930999110,0.1,16869.0,16868.0,0.1]
[1672930999317,0.1,16869.0,16868.0,0.3007]
[1672930999953,0.1001,16869.0,16868.0,0.3007]
[1672931000164,0.1001,16869.0,16868.0,0.5841]
[1672931000482,0.1001,16869.0,16868.0,0.5951]
[1672931000687,0.1,16869.0,16868.0,0.5951]
[1672931001208,0.1,16869.0,16868.0,0.5952]
[1672931001420,0.1,16869.0,16868.0,0.2945]
[1672931001628,0.1001,16869.0,16868.0,0.2945]
[1672931004379,0.0001,16869.0,16868.0,0.2945]
[1672931004799,0.0001,16869.0,16868.0,0.3945]
[1672931006674,0.0001,16869.0,16868.0,0.1111]
[1672931006890,0.0001,16869.0,16868.0,0.3945]
[1672931008260,0.1,16870.0,16868.0,0.6945]